fUST/lending_fUST_20240825
["ID","MTS","AMOUNT","RATE_DAILY","PERIOD"]
[335851220,1724531514110,-1327.62,0.00017534,2]
[335851221,1724531514120,-1212.1,0.00017534,2]
[335851222,1724531514130,-816.93,0.00017534,2]
[335851223,1724531514139,-1347.74,0.00017534,2]
[335851224,1724531514149,-654.44,0.00017534,2]
[335851225,1724531514158,-1183.71,0.00017534,2]
[335851226,1724531514167,-500.0,0.00017534,2]
[335851227,1724531514177,-500.0,0.00017534,2]
[335851228,1724531514186,-640.95790905,0.00017534,2]
[335851229,1724531514196,-500.0,0.00017534,2]
[335851230,1724531514206,-500.0,0.00017534,2]
[335851231,1724531514215,-1399.1,0.00017534,2]
[335851232,1724531514224,-1258.48,0.00017534,2]
[335851233,1724531514233,-908.55,0.00017534,2]
[335851234,1724531514243,-669.53,0.00017534,2]
[335851235,1724531514253,-833.72,0.00017534,2]
[335851236,1724531514263,-675.35,0.00017534,2]
[335851237,1724531514273,-626.94,0.00017534,2]
[335851238,1724531514282,-1045.54,0.00017534,2]
[335851239,1724531514292,-707.88,0.00017534,2]
[335851240,1724531514301,-1304.4,0.00017534,2]
[335851241,1724531514311,-1138.3,0.00017534,2]
[335851242,1724531514320,-1291.63,0.00017534,2]
[335851243,1724531514329,-500.0,0.00017534,2]
[335851244,1724531514338,-622.87,0.00017534,2]
[335851245,1724531514348,-701.54,0.00017534,2]
[335851246,1724531514357,-1511.45,0.00017534,2]
[335851247,1724531514366,-1658.12,0.00017534,2]
[335851248,1724531514376,-842.01,0.00017534,2]
[335851249,1724531514385,-500.0,0.00017534,2]
[335851250,1724531514394,-789.09,0.00017534,2]
[335851251,1724531514403,-615.1,0.00017534,2]
[335851252,1724531514412,-697.2,0.00017534,2]
[335851253,1724531514422,-500.0,0.00017534,2]
[335851254,1724531514432,-805.35,0.00017534,2]
[335851255,1724531514441,-1362.32,0.00017534,2]
[335851256,1724531514451,-983.04,0.00017534,2]
[335851257,1724531514460,-624.92,0.00017534,2]
[335851258,1724531514470,-530.79,0.00017534,2]
[335851259,1724531514479,-1060.9,0.00017534,2]
[335851260,1724531514488,-609.17,0.00017534,2]
[335851261,1724531514498,-569.95,0.00017534,2]
[335851262,1724531514507,-509.84,0.00017534,2]
[335851263,1724531514516,-1647.52,0.00017534,2]
[335851264,1724531514587,-500.0,0.00017534,2]
[335851265,1724531514596,-2067.06,0.00017534,2]
[335851266,1724531514605,-551.95,0.00017534,2]
[335851267,1724531514614,-2076.6,0.00017534,2]
[335851268,1724531514623,-733.55,0.00017534,2]
[335851269,1724531514633,-1212.03,0.00017534,2]
[335851270,1724531514642,-824.83,0.00017534,2]
[335851271,1724531514651,-541.05,0.00017534,2]
[335851272,1724531514660,-706.53,0.00017534,2]
[335851273,1724531514670,-1031.72,0.00017534,2]
[335851274,1724531514679,-500.0,0.00017534,2]
[335851275,1724531514688,-821.42,0.00017534,2]
[335851276,1724531514697,-1269.14,0.00017534,2]
[335851277,1724531514707,-550.91,0.00017534,2]
[335851278,1724531514716,-2330.5,0.00017534,2]
[335851279,1724531514725,-564.78,0.00017534,2]
[335851280,1724531514734,-500.0,0.00017534,2]
[335851281,1724531514745,-500.0,0.00017534,2]
[335851282,1724531514754,-536.71,0.00017534,2]
[335851283,1724531514763,-2051.66,0.00017534,2]
[335851284,1724531514773,-500.0,0.00017534,2]
[335851285,1724531514781,-1362.21,0.00017534,2]
[335851286,1724531514790,-233.91569677,0.00017534,2]
[335851287,1724531514800,-5397.94,0.00017534,2]
[335851288,1724531514809,-6804.12,0.00017534,2]
[335851289,1724531514818,-884.96,0.00017534,2]
[335851290,1724531514827,-648.45,0.00017534,2]
[335851291,1724531514836,-686.18,0.00017534,2]
[335851292,1724531514846,-1785.1,0.00017534,2]
[335851293,1724531514855,-711.95,0.00017534,2]
[335851294,1724531514864,-1293.47,0.00017534,2]
[335851295,1724531514873,-3273.28,0.00017534,2]
[335851296,1724531514882,-1164.49,0.00017534,2]
[335851297,1724531514891,-3352.92,0.00017534,2]
[335851298,1724531514900,-500.0,0.00017534,2]
[335851299,1724531514910,-730.3,0.00017534,2]
[335851300,1724531514919,-747.91,0.00017534,2]
[335851301,1724531514928,-1003.19,0.00017534,2]
[335851302,1724531514937,-1036.67,0.00017534,2]
[335851303,1724531514946,-3007.21,0.00017534,2]
[335851304,1724531514957,-598.05,0.00017534,2]
[335851305,1724531514966,-1648.7,0.00017534,2]
[335851306,1724531514975,-500.0,0.00017534,2]
[335851307,1724531514984,-2248.02,0.00017534,2]
[335851308,1724531514994,-940.59,0.00017534,2]
[335851309,1724531515003,-896.98,0.00017534,2]
[335851310,1724531515014,-762.45,0.00017534,2]
[335851311,1724531515025,-896.49,0.00017534,2]
[335851312,1724531515035,-613.35,0.00017534,2]
[335851313,1724531515047,-7990.85,0.00017534,2]
[335851314,1724531515058,-500.0,0.00017534,2]
[335851315,1724531515068,-3087.13,0.00017534,2]
[335851316,1724531515077,-1632.06,0.00017534,2]
[335851317,1724531515087,-570.3,0.00017534,2]
[335851318,1724531515096,-3378.83,0.00017534,2]
[335851319,1724531515105,-963.5,0.00017534,2]
[335851320,1724531515115,-764.0,0.00017534,2]
[335851321,1724531515128,-525.47209247,0.00017534,2]
[335851322,1724531515139,-644.41,0.00017534,2]
[335851323,1724531515151,-1924.56,0.00017534,2]
[335851324,1724531515161,-5273.79,0.00017534,2]
[335851325,1724531515170,-896.55,0.00017534,2]
[335851326,1724531515179,-10892.31,0.00017534,2]
[335851327,1724531515188,-7921.53,0.00017534,2]
[335851328,1724531515198,-3022.35,0.00017534,2]
[335851329,1724531515207,-663.04,0.00017534,2]
[335851330,1724531515217,-500.0,0.00017534,2]
[335851331,1724531515227,-775.53,0.00017534,2]
[335851332,1724531515236,-1062.57,0.00017534,2]
[335851333,1724531515246,-637.96,0.00017534,2]
[335851334,1724531515256,-670.81,0.00017534,2]
[335851335,1724531515266,-500.0,0.00017534,2]
[335851336,1724531515275,-1720.57,0.00017534,2]
[335851337,1724531515284,-660.87,0.00017534,2]
[335851338,1724531515294,-802.38,0.00017534,2]
[335851339,1724531515303,-1839.52,0.00017534,2]
[335851340,1724531515313,-22051.78,0.00017534,2]
[335851341,1724531515322,-2124.46,0.00017534,2]
[335851342,1724531515335,-823.68,0.00017534,2]
[335851343,1724531515346,-2260.21,0.00017534,2]
[335851344,1724531515356,-968.76,0.00017534,2]
[335851345,1724531515366,-823.85,0.00017534,2]
[335851346,1724531515375,-4073.78,0.00017534,2]
[335851347,1724531515385,-500.0,0.00017534,2]
[335851348,1724531515394,-500.0,0.00017534,2]
[335851349,1724531515403,-805.16,0.00017534,2]
[335851350,1724531515413,-728.77,0.00017534,2]
[335851351,1724531515422,-500.0,0.00017534,2]
[335851352,1724531515431,-591.04,0.00017534,2]
[335851353,1724531515441,-500.0,0.00017534,2]
[335851354,1724531515450,-9393.57,0.00017534,2]
[335851355,1724531515460,-3343.01,0.00017534,2]
[335851356,1724531515468,-1899.14,0.00017534,2]
[335851357,1724531515477,-1029.65,0.00017534,2]
[335851358,1724531515488,-721.66,0.00017534,2]
[335851359,1724531515497,-734.3,0.00017534,2]
[335851360,1724531515507,-1502.18,0.00017534,2]
[335851361,1724531515516,-2917.34,0.00017534,2]
[335851362,1724531515526,-1262.64,0.00017534,2]
[335851363,1724531515536,-1438.33,0.00017534,2]
[335851364,1724531515547,-3106.9,0.00017534,2]
[335851365,1724531515559,-14408.06,0.00017534,2]
[335851366,1724531515568,-2712.11,0.00017534,2]
[335851367,1724531515578,-2193.8,0.00017534,2]
[335851368,1724531515587,-2815.63,0.00017534,2]
[335851369,1724531515597,-2259.87,0.00017534,2]
[335851370,1724531515607,-500.0,0.00017534,2]
[335851371,1724531515616,-627.85,0.00017534,2]
[335851372,1724531515625,-1129.92,0.00017534,2]
[335851373,1724531515634,-789.7,0.00017534,2]
[335851374,1724531515644,-2350.51,0.00017534,2]
[335851375,1724531515653,-2327.67,0.00017534,2]
[335851376,1724531515663,-741.25,0.00017534,2]
[335851377,1724531515672,-2773.88,0.00017534,2]
[335851378,1724531515681,-1842.59,0.00017534,2]
[335851379,1724531515691,-4763.79,0.00017534,2]
[335851380,1724531515700,-500.0,0.00017534,2]
[335851381,1724531515709,-1819.59,0.00017534,2]
[335851382,1724531515720,-621.55,0.00017534,2]
[335851383,1724531515730,-3461.51,0.00017534,2]
[335851384,1724531515741,-1288.14,0.00017534,2]
[335851385,1724531515752,-807.08,0.00017534,2]
[335851386,1724531515761,-679.29,0.00017534,2]
[335851387,1724531515774,-7396.52,0.00017534,2]
[335851388,1724531515784,-814.15,0.00017534,2]
[335851389,1724531515796,-20361.09,0.00017534,2]
[335851390,1724531515807,-904.12,0.00017534,2]
[335851391,1724531515819,-2226.72,0.00017534,2]
[335851392,1724531515828,-10180.43,0.00017534,2]
[335851393,1724531515839,-11201.75,0.00017534,2]
[335851394,1724531515849,-1538.63,0.00017534,2]
[335851395,1724531515859,-718.11,0.00017534,2]
[335851396,1724531515869,-699.61,0.00017534,2]
[335851397,1724531515878,-2896.04,0.00017534,2]
[335851398,1724531515888,-3039.26,0.00017534,2]
[335851399,1724531515898,-2034.56,0.00017534,2]
[335851400,1724531515907,-685.31,0.00017534,2]
[335851401,1724531515917,-1232.81,0.00017534,2]
[335851402,1724531515927,-500.0,0.00017534,2]
[335851403,1724531515936,-941.9,0.00017534,2]
[335851404,1724531515946,-1832.98,0.00017534,2]
[335851405,1724531515956,-1070.08,0.00017534,2]
[335851406,1724531515965,-11259.44,0.00017534,2]
[335851407,1724531515974,-750.0,0.0001756,2]
[335851408,1724531515983,-1992.38893586,0.000176,2]
[335851409,1724531515993,-465.00000024,0.0001763,2]
[335851410,1724531516002,-3674.67870264,0.00017699,2]
[335851411,1724531516011,-500.0,0.00017786,2]
[335851412,1724531516021,-500.0,0.00017786,2]
[335851413,1724531516030,-2500.0,0.00017789,2]
[335851414,1724531516040,-813.56,0.00017808,2]
[335851415,1724531516051,-734.4,0.00017808,2]
[335851416,1724531516061,-603.04,0.00017808,2]
[335851417,1724531516070,-622.05,0.00017808,2]
[335851418,1724531516080,-500.0,0.00017808,2]
[335851419,1724531516091,-500.0,0.00017808,2]
[335851420,1724531516100,-519.65,0.00017808,2]
[335851421,1724531516110,-713.04,0.00017808,2]
[335851422,1724531516119,-530.24,0.00017808,2]
[335851423,1724531516129,-602.6,0.00017808,2]
[335851424,1724531516139,-310.12,0.00017808,2]
[335851425,1724531516148,-784.11,0.00017808,2]
[335851426,1724531516157,-563.59,0.00017808,2]
[335851427,1724531516167,-891.68,0.00017808,2]
[335851428,1724531516177,-805.77,0.00017808,2]
[335851429,1724531516188,-569.79,0.00017808,2]
[335851430,1724531516199,-523.9,0.00017808,2]
[335851431,1724531516208,-562.45,0.00017808,2]
[335851432,1724531516218,-962.65,0.00017808,2]
[335851433,1724531516227,-559.36,0.00017808,2]
[335851434,1724531516237,-586.18,0.00017808,2]
[335851435,1724531516249,-807.15,0.00017808,2]
[335851436,1724531516259,-583.94,0.00017808,2]
[335851437,1724531516268,-533.88,0.00017808,2]
[335851438,1724531516277,-760.25,0.00017808,2]
[335851439,1724531516287,-583.15,0.00017808,2]
[335851440,1724531516296,-863.95,0.00017808,2]
[335851441,1724531516305,-520.2,0.00017808,2]
[335851442,1724531516316,-500.0,0.00017808,2]
[335851443,1724531516327,-1365.0,0.00017808,2]
[335851444,1724531516341,-850.08,0.00017808,2]
[335851445,1724531516351,-752.47,0.00017808,2]
[335851446,1724531516362,-1109.59,0.00017808,2]
[335851447,1724531516372,-706.93,0.00017808,2]
[335851448,1724531516382,-500.0,0.00017808,2]
[335851449,1724531516393,-576.76,0.00017808,2]
[335851450,1724531516403,-823.53,0.00017808,2]
[335851451,1724531516415,-500.0,0.00017808,2]
[335851452,1724531516425,-500.0,0.00017808,2]
[335851453,1724531516436,-526.81,0.00017808,2]
[335851454,1724531516447,-500.0,0.00017808,2]
[335851455,1724531516458,-677.32,0.00017808,2]
[335851456,1724531516469,-500.0,0.00017808,2]
[335851457,1724531516478,-500.0,0.00017808,2]
[335851458,1724531516486,-929.47,0.00017808,2]
[335851459,1724531516496,-500.0,0.00017808,2]
[335851460,1724531516505,-748.15,0.00017808,2]
[335851461,1724531516514,-534.28,0.00017808,2]
[335851462,1724531516524,-500.0,0.00017808,2]
[335851463,1724531516533,-774.94,0.00017808,2]
[335851464,1724531516543,-1168.85,0.00017808,2]
[335851465,1724531516553,-363.87487964,0.00017808,2]
[335851466,1724531516562,-1085.43,0.00017808,2]
[335851467,1724531516572,-1002.47,0.00017808,2]
[335851468,1724531516588,-639.11,0.00017808,2]
[335851469,1724531516599,-500.0,0.00017808,2]
[335851470,1724531516610,-926.86,0.00017808,2]
[335851471,1724531516621,-761.14,0.00017808,2]
[335851472,1724531516632,-526.71,0.00017808,2]
[335851473,1724531516642,-500.0,0.00017808,2]
[335851474,1724531516654,-744.22,0.00017808,2]
[335851475,1724531516665,-631.93,0.00017808,2]
[335851476,1724531516675,-2112.1,0.00017808,2]
[335851477,1724531516685,-592.66,0.00017808,2]
[335851478,1724531516695,-884.46,0.00017808,2]
[335851479,1724531516705,-500.0,0.00017808,2]
[335851481,1724531516717,-2931.13,0.00017808,2]
[335851482,1724531516734,-1078.65,0.00017808,2]
[335851483,1724531516745,-275.05601566,0.00017808,2]
[335851484,1724531516755,-500.0,0.00017808,2]
[335851485,1724531516765,-500.0,0.00017808,2]
[335851486,1724531516775,-618.62,0.00017808,2]
[335851487,1724531516785,-816.32,0.00017808,2]
[335851488,1724531516795,-800.21,0.00017808,2]
[335851489,1724531516806,-781.63,0.00017808,2]
[335851490,1724531516817,-500.0,0.00017808,2]
[335851491,1724531516827,-1221.12,0.00017808,2]
[335851492,1724531516837,-646.32,0.00017808,2]
[335851493,1724531516847,-500.0,0.00017808,2]
[335851494,1724531516857,-2043.72,0.00017808,2]
[335851495,1724531516867,-1010.23,0.00017808,2]
[335851496,1724531516876,-766.22,0.00017808,2]
[335851497,1724531516886,-799.71,0.00017808,2]
[335851498,1724531516895,-502.44,0.00017808,2]
[335851499,1724531516905,-500.13,0.00017808,2]
[335851500,1724531516914,-578.8,0.00017808,2]
[335851501,1724531516924,-500.0,0.00017808,2]
[335851502,1724531516934,-594.16,0.00017808,2]
[335851503,1724531516944,-1288.02,0.00017808,2]
[335851504,1724531516953,-969.48,0.00017808,2]
[335851505,1724531516963,-500.0,0.00017808,2]
[335851506,1724531516973,-1368.37,0.00017808,2]
[335851507,1724531516982,-500.0,0.00017808,2]
[335851508,1724531516992,-1302.49,0.00017808,2]
[335851509,1724531517001,-500.0,0.00017808,2]
[335851510,1724531517011,-675.1,0.00017808,2]
[335851511,1724531517020,-500.0,0.00017808,2]
[335851512,1724531517030,-872.09,0.00017808,2]
[335851513,1724531517040,-852.86,0.00017808,2]
[335851514,1724531517052,-500.0,0.00017808,2]
[335851515,1724531517062,-1320.03,0.00017808,2]
[335851516,1724531517071,-2614.24,0.00017808,2]
[335851517,1724531517081,-1263.51,0.00017808,2]
[335851518,1724531517091,-1424.95,0.00017808,2]
[335851519,1724531517101,-2728.43,0.00017808,2]
[335851520,1724531517110,-1292.45,0.00017808,2]
[335851521,1724531517120,-507.92,0.00017808,2]
[335851522,1724531517130,-688.45,0.00017808,2]
[335851523,1724531517141,-500.0,0.00017808,2]
[335851524,1724531517151,-1410.25,0.00017808,2]
[335851525,1724531517163,-754.58,0.00017808,2]
[335851526,1724531517173,-2375.92,0.00017808,2]
[335851527,1724531517183,-500.0,0.00017808,2]
[335851528,1724531517193,-1921.55,0.00017808,2]
[335851529,1724531517203,-980.6,0.00017808,2]
[335851530,1724531517213,-500.0,0.00017808,2]
[335851531,1724531517223,-500.0,0.00017808,2]
[335851532,1724531517233,-999.26,0.00017808,2]
[335851533,1724531517242,-1062.09,0.00017808,2]
[335851534,1724531517252,-637.81,0.00017808,2]
[335851535,1724531517261,-1225.13,0.00017808,2]
[335851536,1724531517272,-800.8,0.00017808,2]
[335851537,1724531517283,-500.0,0.00017808,2]
[335851538,1724531517294,-1128.59,0.00017808,2]
[335851539,1724531517304,-819.98,0.00017808,2]
[335851540,1724531517315,-548.82,0.00017808,2]
[335851541,1724531517326,-1327.62,0.00017808,2]
[335851542,1724531517337,-1212.1,0.00017808,2]
[335851543,1724531517347,-500.0,0.00017808,2]
[335851544,1724531517356,-816.93,0.00017808,2]
[335851545,1724531517367,-1347.74,0.00017808,2]
[335851546,1724531517377,-654.44,0.00017808,2]
[335851547,1724531517387,-1183.71,0.00017808,2]
[335851548,1724531517397,-500.0,0.00017808,2]
[335851549,1724531517407,-500.0,0.00017808,2]
[335851550,1724531517417,-500.0,0.00017808,2]
[335851551,1724531517427,-500.0,0.00017808,2]
[335851552,1724531517436,-1399.1,0.00017808,2]
[335851553,1724531517446,-1258.48,0.00017808,2]
[335851554,1724531517455,-908.55,0.00017808,2]
[335851555,1724531517466,-669.53,0.00017808,2]
[335851556,1724531517476,-833.72,0.00017808,2]
[335851557,1724531517486,-675.35,0.00017808,2]
[335851558,1724531517497,-626.94,0.00017808,2]
[335851559,1724531517507,-1045.54,0.00017808,2]
[335851560,1724531517517,-707.88,0.00017808,2]
[335851561,1724531517526,-1304.4,0.00017808,2]
[335851562,1724531517536,-1138.3,0.00017808,2]
[335851563,1724531517546,-1291.63,0.00017808,2]
[335851564,1724531517555,-500.0,0.00017808,2]
[335851565,1724531517564,-622.87,0.00017808,2]
[335851566,1724531517574,-701.54,0.00017808,2]
[335851567,1724531517584,-1511.45,0.00017808,2]
[335851568,1724531517594,-1658.12,0.00017808,2]
[335851569,1724531517603,-842.01,0.00017808,2]
[335851570,1724531517613,-500.0,0.00017808,2]
[335851571,1724531517622,-789.09,0.00017808,2]
[335851572,1724531517632,-615.1,0.00017808,2]
[335851573,1724531517642,-697.2,0.00017808,2]
[335851574,1724531517652,-500.0,0.00017808,2]
[335851575,1724531517662,-805.35,0.00017808,2]
[335851576,1724531517672,-1362.32,0.00017808,2]
[335851577,1724531517682,-624.92,0.00017808,2]
[335851578,1724531517692,-983.04,0.00017808,2]
[335851579,1724531517702,-530.79,0.00017808,2]
[335851580,1724531517712,-1060.9,0.00017808,2]
[335851581,1724531517722,-609.17,0.00017808,2]
[335851582,1724531517732,-569.95,0.00017808,2]
[335851583,1724531517742,-509.84,0.00017808,2]
[335851584,1724531517751,-1647.52,0.00017808,2]
[335851585,1724531517761,-500.0,0.00017808,2]
[335851586,1724531517771,-2067.06,0.00017808,2]
[335851587,1724531517780,-551.95,0.00017808,2]
[335851588,1724531517790,-2076.6,0.00017808,2]
[335851589,1724531517800,-733.55,0.00017808,2]
[335851590,1724531517813,-1212.03,0.00017808,2]
[335851591,1724531517823,-824.83,0.00017808,2]
[335851592,1724531517833,-541.05,0.00017808,2]
[335851593,1724531517843,-706.53,0.00017808,2]
[335851594,1724531517853,-1031.72,0.00017808,2]
[335851595,1724531517863,-500.0,0.00017808,2]
[335851596,1724531517873,-821.42,0.00017808,2]
[335851597,1724531517882,-1269.14,0.00017808,2]
[335851598,1724531517892,-550.91,0.00017808,2]
[335851599,1724531517902,-564.78,0.00017808,2]
[335851600,1724531517911,-2330.5,0.00017808,2]
[335851601,1724531517922,-500.0,0.00017808,2]
[335851602,1724531517935,-500.0,0.00017808,2]
[335851603,1724531517945,-536.71,0.00017808,2]
[335851604,1724531517955,-2051.66,0.00017808,2]
[335851605,1724531517967,-500.0,0.00017808,2]
[335851606,1724531517977,-1362.21,0.00017808,2]
[335851607,1724531517986,-5397.94,0.00017808,2]
[335851608,1724531517995,-6804.12,0.00017808,2]
[335851609,1724531518004,-884.96,0.00017808,2]
[335851610,1724531518014,-648.45,0.00017808,2]
[335851611,1724531518024,-686.18,0.00017808,2]
[335851612,1724531518034,-1785.1,0.00017808,2]
[335851613,1724531518044,-711.95,0.00017808,2]
[335851614,1724531518056,-1293.47,0.00017808,2]
[335851615,1724531518066,-3273.28,0.00017808,2]
[335851616,1724531518076,-1164.49,0.00017808,2]
[335851617,1724531518087,-3352.92,0.00017808,2]
[335851618,1724531518099,-500.0,0.00017808,2]
[335851619,1724531518110,-730.3,0.00017808,2]
[335851620,1724531518121,-747.91,0.00017808,2]
[335851621,1724531518133,-1003.19,0.00017808,2]
[335851622,1724531518145,-1036.67,0.00017808,2]
[335851623,1724531518155,-3007.21,0.00017808,2]
[335851624,1724531518165,-598.05,0.00017808,2]
[335851625,1724531518178,-1648.7,0.00017808,2]
[335851626,1724531518190,-500.0,0.00017808,2]
[335851627,1724531518201,-2248.02,0.00017808,2]
[335851628,1724531518211,-940.59,0.00017808,2]
[335851629,1724531518220,-896.98,0.00017808,2]
[335851630,1724531518230,-762.45,0.00017808,2]
[335851631,1724531518240,-896.49,0.00017808,2]
[335851632,1724531518250,-613.35,0.00017808,2]
[335851633,1724531518260,-7990.85,0.00017808,2]
[335851634,1724531518270,-500.0,0.00017808,2]
[335851635,1724531518281,-3087.13,0.00017808,2]
[335851636,1724531518290,-1632.06,0.00017808,2]
[335851637,1724531518300,-570.3,0.00017808,2]
[335851638,1724531518454,-3378.83,0.00017808,2]
[335851639,1724531518477,-963.5,0.00017808,2]
[335851640,1724531518488,-764.0,0.00017808,2]
[335851641,1724531518498,-644.41,0.00017808,2]
[335851642,1724531518507,-1924.56,0.00017808,2]
[335851643,1724531518518,-5273.79,0.00017808,2]
[335851644,1724531518529,-896.55,0.00017808,2]
[335851645,1724531518539,-10892.31,0.00017808,2]
[335851646,1724531518550,-7921.53,0.00017808,2]
[335851647,1724531518560,-3022.35,0.00017808,2]
[335851648,1724531518570,-663.04,0.00017808,2]
[335851649,1724531518580,-235.49013807,0.00017808,2]
[335851650,1724531518590,-775.53,0.00017808,2]
[335851651,1724531518599,-1062.57,0.00017808,2]
[335851652,1724531518609,-637.96,0.00017808,2]
[335851653,1724531518618,-670.81,0.00017808,2]
[335851654,1724531518628,-435.00000001,0.00017808,2]
[335851655,1724531518638,-1720.57,0.00017808,2]
[335851656,1724531518648,-660.87,0.00017808,2]
[335851657,1724531518657,-802.38,0.00017808,2]
[335851658,1724531518667,-1839.52,0.00017808,2]
[335851659,1724531518677,-22051.78,0.00017808,2]
[335851660,1724531518687,-2124.46,0.00017808,2]
[335851661,1724531518697,-823.68,0.00017808,2]
[335851662,1724531518708,-968.76,0.00017808,2]
[335851663,1724531518719,-2260.21,0.00017808,2]
[335851664,1724531518729,-823.85,0.00017808,2]
[335851665,1724531518739,-4073.78,0.00017808,2]
[335851666,1724531518749,-500.0,0.00017808,2]
[335851667,1724531518758,-500.0,0.00017808,2]
[335851668,1724531518767,-805.16,0.00017808,2]
[335851669,1724531518777,-728.77,0.00017808,2]
[335851670,1724531518787,-500.0,0.00017808,2]
[335851671,1724531518797,-591.04,0.00017808,2]
[335851672,1724531518806,-500.0,0.00017808,2]
[335851673,1724531518816,-9393.57,0.00017808,2]
[335851674,1724531518826,-3343.01,0.00017808,2]
[335851675,1724531518838,-1899.14,0.00017808,2]
[335851676,1724531518847,-1029.65,0.00017808,2]
[335851677,1724531518857,-721.66,0.00017808,2]
[335851678,1724531518867,-734.3,0.00017808,2]
[335851679,1724531518878,-1502.18,0.00017808,2]
[335851680,1724531518887,-2917.34,0.00017808,2]
[335851681,1724531518897,-1262.64,0.00017808,2]
[335851682,1724531518906,-1438.33,0.00017808,2]
[335851683,1724531518916,-3106.9,0.00017808,2]
[335851684,1724531518926,-14408.06,0.00017808,2]
[335851685,1724531518935,-2712.11,0.00017808,2]
[335851686,1724531518945,-2193.8,0.00017808,2]
[335851687,1724531518954,-2815.63,0.00017808,2]
[335851688,1724531518964,-2259.87,0.00017808,2]
[335851689,1724531518974,-551.02758746,0.00017808,2]
[335851690,1724531518984,-627.85,0.00017808,2]
[335851691,1724531518994,-1129.92,0.00017808,2]
[335851692,1724531519004,-789.7,0.00017808,2]
[335851693,1724531519015,-2350.51,0.00017808,2]
[335851694,1724531519027,-2327.67,0.00017808,2]
[335851695,1724531519038,-741.25,0.00017808,2]
[335851696,1724531519054,-2773.88,0.00017808,2]
[335851697,1724531519064,-1842.59,0.00017808,2]
[335851698,1724531519074,-500.0,0.00017808,2]
[335851699,1724531519086,-4763.79,0.00017808,2]
[335851700,1724531519097,-1819.59,0.00017808,2]
[335851701,1724531519106,-621.55,0.00017808,2]
[335851702,1724531519115,-3461.51,0.00017808,2]
[335851703,1724531519125,-1288.14,0.00017808,2]
[335851704,1724531519135,-807.08,0.00017808,2]
[335851705,1724531519145,-679.29,0.00017808,2]
[335851706,1724531519155,-7396.52,0.00017808,2]
[335851707,1724531519164,-814.15,0.00017808,2]
[335851708,1724531519174,-20361.09,0.00017808,2]
[335851709,1724531519183,-904.12,0.00017808,2]
[335851710,1724531519193,-2226.72,0.00017808,2]
[335851711,1724531519202,-10180.43,0.00017808,2]
[335851712,1724531519211,-11201.75,0.00017808,2]
[335851713,1724531519221,-1538.63,0.00017808,2]
[335851714,1724531519231,-718.11,0.00017808,2]
[335851715,1724531519240,-699.61,0.00017808,2]
[335851716,1724531519250,-2896.04,0.00017808,2]
[335851717,1724531519259,-3039.26,0.00017808,2]
[335851718,1724531519269,-2034.56,0.00017808,2]
[335851719,1724531519278,-685.31,0.00017808,2]
[335851720,1724531519287,-1232.81,0.00017808,2]